bitfinex-derivatives/quotes_BTCF0:USTF0_20251023
["timestamp","ask_amount","ask_price","bid_price","bid_amount"]
[1761252694868,0.49942964,109920.0,109910.0,0.36407]
[1761252695072,0.3680742,109920.0,109910.0,0.36407]
[1761252695779,0.53206981,109920.0,109910.0,0.36407]
[1761252696570,0.20407859,109920.0,109910.0,0.8158288]
[1761252696774,0.3680742,109920.0,109910.0,0.97982441]
[1761252697285,0.20407859,109920.0,109910.0,0.97982441]
[1761252697579,0.3700742,109920.0,109910.0,0.97982441]
[1761252698970,0.20607859,109920.0,109910.0,0.99274441]
[1761252699176,0.19313859,109920.0,109910.0,0.99274441]
[1761252700082,0.19213859,109920.0,109910.0,0.99274441]
[1761252700281,0.19213859,109920.0,109910.0,0.67274441]
[1761252700484,0.19213859,109920.0,109910.0,0.99274441]
[1761252701283,0.19213859,109920.0,109910.0,0.67274441]
[1761252701484,0.19213859,109920.0,109910.0,0.99274441]
[1761252703082,0.19213859,109920.0,109910.0,0.67274441]
[1761252703278,0.05808809,109920.0,109910.0,0.83674002]
[1761252703485,0.08151489,109930.0,109920.0,0.1478006]
[1761252703674,0.17245099,109940.0,109930.0,0.1455023]
[1761252703874,0.03264017,109940.0,109930.0,1.15429352]
[1761252704177,0.090934,109940.0,109930.0,0.99029101]
[1761252704377,0.17147207,109950.0,109940.0,0.147724]
[1761252704577,0.17147207,109950.0,109940.0,0.67251961]
[1761252705282,0.17147207,109950.0,109940.0,0.83651522]
[1761252706078,0.17347207,109950.0,109940.0,0.67251961]
[1761252706286,0.18047207,109950.0,109940.0,0.67251961]
[1761252706681,0.18047207,109950.0,109940.0,0.68335045]
[1761252706875,0.19341207,109950.0,109940.0,0.50663484]
[1761252707080,0.35740768,109950.0,109940.0,0.495804]
[1761252708296,0.35740768,109950.0,109940.0,0.65979961]
[1761252708684,0.35740768,109950.0,109940.0,0.67106951]
[1761252709682,0.35740768,109950.0,109940.0,0.40487]
[1761252712493,0.35740768,109950.0,109940.0,0.495804]
[1761252712684,0.35740768,109950.0,109940.0,0.65979961]
[1761252712989,0.19341207,109950.0,109940.0,0.67251961]
[1761252714694,0.19341207,109950.0,109940.0,0.68384389]
[1761252715587,0.35740768,109950.0,109940.0,0.68384389]
[1761252717798,0.18047207,109950.0,109940.0,0.68384389]
[1761252718198,0.1478319,109950.0,109940.0,0.68384389]
[1761252719099,0.19428207,109950.0,109940.0,0.68384389]
[1761252719297,0.1616419,109950.0,109940.0,0.68384389]
[1761252720294,0.19428207,109950.0,109940.0,0.68384389]
[1761252720498,0.35827768,109950.0,109940.0,0.68384389]
[1761252720899,0.18047207,109950.0,109940.0,0.68384389]
[1761252721200,0.34446768,109950.0,109940.0,0.68384389]
[1761252721997,0.18047207,109950.0,109940.0,0.68384389]
[1761252722699,0.34446768,109950.0,109940.0,0.68384389]
[1761252724203,0.35827768,109950.0,109940.0,0.67112389]
[1761252724701,0.35827768,109950.0,109940.0,0.495804]
[1761252724702,0.19428207,109950.0,109940.0,0.495804]
[1761252725307,0.35814395,109950.0,109940.0,0.40487]
[1761252725699,0.40701867,109950.0,109940.0,0.38322]
[1761252725895,0.1486923,109930.0,109920.0,0.40422]
[1761252726195,0.1486923,109930.0,109920.0,0.70228]
[1761252726196,0.34511879,109930.0,109920.0,0.70228]
[1761252726501,0.39396571,109930.0,109920.0,0.40422]
[1761252726796,0.23010383,109930.0,109920.0,0.40422]
[1761252727002,0.39396571,109930.0,109920.0,0.40422]
[1761252727295,0.39496571,109930.0,109920.0,0.40422]
[1761252728898,0.39496571,109930.0,109920.0,0.4951705]
[1761252729105,0.16844691,109930.0,109920.0,0.66952238]
[1761252729705,0.18225691,109930.0,109920.0,0.4951705]
[1761252730506,0.1496923,109930.0,109920.0,0.4951705]
[1761252731403,0.1496923,109930.0,109920.0,0.40422]
[1761252731609,0.18225691,109930.0,109920.0,0.40422]
[1761252733103,0.34611879,109930.0,109920.0,0.40422]
[1761252733304,0.39496571,109930.0,109920.0,0.40422]
[1761252734209,0.34611879,109930.0,109920.0,0.40422]
[1761252734906,0.1266704,109920.0,109910.0,0.40422]
[1761252735112,0.31256228,109920.0,109910.0,0.40422]
[1761252736914,0.1487004,109920.0,109910.0,0.40422]
[1761252737115,0.31256228,109920.0,109910.0,0.40422]
[1761252737311,0.34512689,109920.0,109910.0,0.40422]
[1761252737515,0.34512689,109920.0,109910.0,0.04342]
[1761252740316,0.34512689,109920.0,109910.0,0.05456632]
[1761252740610,0.31256228,109920.0,109910.0,0.05456632]
[1761252741011,0.31256228,109920.0,109910.0,0.04342]
[1761252741908,0.31456228,109920.0,109910.0,0.04342]
[1761252744117,0.31456228,109920.0,109910.0,0.56808188]
[1761252744118,0.1507004,109920.0,109910.0,0.56808188]
[1761252744614,0.1507004,109920.0,109910.0,0.41696]
[1761252745110,0.1368904,109920.0,109910.0,0.67178038]
[1761252745915,0.0929502,109920.0,109910.0,0.67178038]
[1761252746716,0.1143702,109920.0,109910.0,0.67178038]
[1761252747120,0.1358602,109920.0,109910.0,0.67178038]
[1761252747720,0.002,109920.0,109910.0,0.67178038]
[1761252748419,0.002,109920.0,109910.0,0.69628675]
[1761252749319,0.0909459,109930.0,109920.0,0.1452602]
[1761252749523,0.0909459,109930.0,109920.0,0.98988208]
[1761252749720,0.1131759,109930.0,109920.0,0.98988208]
[1761252750020,0.16722301,109940.0,109930.0,0.1473519]
[1761252750314,0.1131684,109940.0,109930.0,0.67201378]
[1761252750513,0.0909384,109940.0,109930.0,0.5081519]
[1761252750710,0.22086153,109950.0,109940.0,0.1472836]
[1761252750908,0.22086153,109950.0,109940.0,0.63110548]
[1761252751113,0.22086153,109950.0,109940.0,0.37631]
[1761252751419,0.22086153,109950.0,109940.0,0.54017188]
[1761252751622,0.23425153,109950.0,109940.0,0.72439]
[1761252751920,0.18540461,109950.0,109940.0,0.72439]
[1761252752419,0.23425153,109950.0,109940.0,0.72439]
[1761252753022,0.18540461,109950.0,109940.0,0.72439]
[1761252753221,0.23625153,109950.0,109940.0,0.72439]
[1761252753917,0.17401461,109950.0,109940.0,0.99190548]
[1761252756314,0.17401461,109950.0,109940.0,0.8280436]
[1761252756514,0.18740461,109950.0,109940.0,0.99190548]
[1761252757112,0.18740461,109950.0,109940.0,0.83857285]
[1761252757319,0.15484,109950.0,109940.0,0.83857285]
[1761252758123,0.15484,109950.0,109940.0,0.73491925]
[1761252758718,0.18740461,109950.0,109940.0,0.73491925]
[1761252759823,0.18740461,109950.0,109940.0,0.82585295]
[1761252760222,0.15484,109950.0,109940.0,0.82585295]
[1761252761723,0.15484,109950.0,109940.0,0.73491925]
[1761252761923,0.14145,109950.0,109940.0,0.83857295]
[1761252764231,0.15484,109950.0,109940.0,0.83857295]
[1761252764434,0.17927227,109950.0,109940.0,0.83857295]
[1761252764823,0.15484,109950.0,109940.0,0.83857295]
[1761252765324,0.15484,109950.0,109940.0,0.82585295]
[1761252765931,0.17927227,109950.0,109940.0,0.82585295]
[1761252766630,0.17927227,109950.0,109940.0,0.73491925]
[1761252766830,0.15484,109950.0,109940.0,0.73491925]
[1761252767019,0.15484,109950.0,109940.0,0.82585285]
[1761252767224,0.17927227,109950.0,109940.0,0.82585285]
[1761252770035,0.16588227,109950.0,109940.0,1.00243473]
[1761252772437,0.12216227,109950.0,109940.0,1.00243473]
[1761252772931,0.05699688,109960.0,109940.0,1.40243473]
[1761252773121,0.19165318,109970.0,109960.0,0.0909171]
[1761252773326,0.20453175,109970.0,109960.0,0.4955971]
[1761252773932,0.20453175,109970.0,109960.0,0.8154771]
[1761252774231,0.18007091,109970.0,109960.0,0.72456]
[1761252774432,0.18907091,109970.0,109960.0,0.72556]
[1761252774930,0.18907091,109970.0,109960.0,0.8164771]
[1761252775132,0.18407091,109970.0,109960.0,0.8164771]
[1761252775438,0.79677971,109970.0,109960.0,0.001]
[1761252775639,1.15757971,109970.0,109960.0,0.001]
[1761252775939,1.1340151,109970.0,109960.0,0.001]
[1761252777239,1.08516818,109970.0,109960.0,0.001]
[1761252778137,1.08516818,109970.0,109960.0,0.04488]
[1761252779241,0.72436818,109970.0,109960.0,0.04488]
[1761252779538,1.08516818,109970.0,109960.0,0.04488]
[1761252780437,1.15033447,109970.0,109960.0,0.04488]
[1761252782139,1.15033447,109970.0,109960.0,0.001]
[1761252782745,1.15033447,109970.0,109960.0,0.02274]
[1761252784240,1.47021447,109970.0,109960.0,0.02274]
[1761252784436,1.47021447,109970.0,109960.0,0.001]
[1761252784844,1.63403647,109970.0,109960.0,0.001]
[1761252786439,1.63403647,109970.0,109960.0,0.04488]
[1761252786440,1.47015453,109970.0,109960.0,0.04488]
[1761252786746,1.07015453,109970.0,109960.0,0.04488]
[1761252787256,1.47015453,109970.0,109960.0,0.04488]
[1761252789144,1.10935453,109970.0,109960.0,0.04488]
[1761252789635,1.47015453,109970.0,109960.0,0.001]
[1761252789838,1.07015453,109970.0,109960.0,0.001]
[1761252790642,1.31415647,109970.0,109960.0,0.001]
[1761252790948,1.63403647,109970.0,109960.0,0.001]
[1761252792643,1.30635259,109970.0,109960.0,0.02274]
[1761252792948,1.47019453,109970.0,109960.0,0.04488]
[1761252793246,1.10939453,109970.0,109960.0,0.04488]
[1761252793449,1.47019453,109970.0,109960.0,0.04488]
[1761252794250,0.98647259,109970.0,109960.0,0.04488]
[1761252794548,1.47019453,109970.0,109960.0,0.04488]
[1761252795546,1.47019453,109970.0,109960.0,0.02274]
[1761252796749,1.47019453,109970.0,109960.0,0.001]
[1761252797949,1.47019453,109970.0,109960.0,0.02274]
[1761252798151,1.47019453,109970.0,109960.0,0.001]
[1761252798846,1.63403647,109970.0,109960.0,0.001]
[1761252799046,1.47019453,109970.0,109960.0,0.001]
[1761252799351,1.47019453,109970.0,109960.0,0.02274]
[1761252800252,1.47019453,109970.0,109960.0,0.04488]
[1761252800451,1.48642767,109970.0,109960.0,0.04488]
[1761252801753,1.12562767,109970.0,109960.0,0.04488]
[1761252801956,1.48642767,109970.0,109960.0,0.04488]
[1761252806662,1.48642767,109970.0,109960.0,0.02274]
[1761252807960,1.48642767,109970.0,109960.0,0.04545]
[1761252809361,1.48642767,109970.0,109960.0,0.001]
[1761252810448,1.55174582,109970.0,109960.0,0.0469]
[1761252810655,1.47034639,109970.0,109960.0,0.0469]
[1761252811258,1.10954639,109970.0,109960.0,0.0469]
[1761252811459,1.47034639,109970.0,109960.0,0.0469]
[1761252812347,1.10954639,109970.0,109960.0,0.0469]
[1761252812849,1.47034639,109970.0,109960.0,0.0469]
[1761252815363,1.07034639,109970.0,109960.0,0.0469]
[1761252816758,0.70954639,109970.0,109960.0,0.0469]
[1761252817061,1.07034639,109970.0,109960.0,0.0469]
[1761252818760,0.75046639,109970.0,109960.0,0.21074194]
[1761252818959,1.00498824,109970.0,109960.0,0.0469]
[1761252819159,0.64418824,109970.0,109960.0,0.0469]
[1761252819366,0.69316827,109970.0,109960.0,0.0469]
[1761252819762,0.37332827,109970.0,109960.0,0.21074194]
[1761252819960,0.37332827,109970.0,109960.0,0.0469]
[1761252823970,0.36432827,109970.0,109960.0,0.0459]
[1761252824171,0.36532827,109970.0,109960.0,0.0459]
[1761252824660,0.36132827,109970.0,109960.0,0.0459]
[1761252824860,0.36232827,109970.0,109960.0,0.0459]
[1761252825769,0.1497667,109960.0,109950.0,0.98130124]
[1761252826070,0.34625241,109960.0,109950.0,0.98130124]
[1761252826467,0.34625241,109960.0,109950.0,0.817465]
[1761252826870,0.18241047,109960.0,109950.0,0.98130694]
[1761252827058,0.34625241,109960.0,109950.0,0.98130694]
[1761252829468,0.34725241,109960.0,109950.0,0.98130694]
[1761252830774,0.34825241,109960.0,109950.0,0.98130694]
[1761252832571,0.34825241,109960.0,109950.0,0.89038194]
[1761252832775,0.34825241,109960.0,109950.0,0.72654]
[1761252832976,0.39723244,109960.0,109950.0,0.72654]
[1761252835174,0.39723244,109960.0,109950.0,0.66146694]
[1761252836779,0.2333905,109960.0,109950.0,0.66146694]
[1761252836983,0.39723244,109960.0,109950.0,0.66146694]
[1761252837782,0.39723244,109960.0,109950.0,0.57054194]
[1761252838081,0.34825241,109960.0,109950.0,0.57054194]
[1761252840084,0.39723244,109960.0,109950.0,0.57054194]
[1761252841584,0.47945058,109960.0,109950.0,0.4067]
[1761252841786,0.51208633,109960.0,109950.0,0.4067]
[1761252842184,0.34824439,109960.0,109950.0,0.4067]
[1761252842385,0.34824439,109960.0,109950.0,0.0459]
[1761252842584,0.51208633,109960.0,109950.0,0.0459]
[1761252842884,0.148255,109950.0,109940.0,0.89966148]
[1761252843076,0.21698795,109950.0,109940.0,1.16717662]
[1761252843385,0.16803818,109950.0,109940.0,1.56717662]
[1761252844176,0.16803818,109950.0,109940.0,1.40333468]
[1761252844379,0.16803818,109950.0,109940.0,1.56717662]
[1761252844776,0.16803818,109950.0,109940.0,1.40332238]
[1761252845180,0.21698795,109950.0,109940.0,1.40332238]
[1761252845386,0.16803818,109950.0,109940.0,1.40332238]
[1761252845690,0.19251403,109950.0,109940.0,1.40332238]
[1761252847998,0.16963403,109950.0,109940.0,1.40332238]
[1761252848797,0.16963403,109950.0,109940.0,1.76412238]
[1761252849501,0.19251403,109950.0,109940.0,1.76412238]
[1761252849702,0.19251403,109950.0,109940.0,1.36412238]
[1761252850402,0.15988086,109950.0,109940.0,1.38866426]
[1761252851201,0.02447586,109950.0,109940.0,1.38866426]
[1761252851403,0.11540086,109950.0,109940.0,1.38866426]
[1761252851797,0.13700086,109950.0,109940.0,1.38866426]
[1761252854503,0.15988086,109950.0,109940.0,1.38866426]
[1761252855200,0.3365605,109950.0,109940.0,1.21209462]
[1761252855406,0.3365605,109950.0,109940.0,0.85129462]
[1761252855602,0.17273086,109950.0,109940.0,0.85129462]
[1761252856704,0.34471782,109950.0,109940.0,0.02454188]
[1761252857007,0.1482632,109940.0,109930.0,0.72502]
[1761252857201,0.34472477,109940.0,109930.0,0.40526]
[1761252857403,0.39367454,109940.0,109930.0,0.40526]
[1761252857905,0.39367454,109940.0,109930.0,0.04446]
[1761252858106,0.1482715,109930.0,109920.0,0.73527792]
[1761252858306,0.20534659,109930.0,109920.0,0.73527792]
[1761252858908,0.36917623,109930.0,109920.0,0.72502]
[1761252859307,0.19249659,109930.0,109920.0,0.43124498]
[1761252859610,0.20534659,109930.0,109920.0,0.003]
[1761252859917,0.68893623,109930.0,109920.0,0.003]
[1761252860398,0.65632189,109930.0,109920.0,0.04746]
[1761252860709,1.47422525,109930.0,109920.0,0.003]
[1761252860915,0.16061307,109920.0,109910.0,0.3608]
[1761252861208,0.1482878,109910.0,109900.0,0.04900938]
[1761252861409,0.33651931,109910.0,109900.0,0.04900938]
[1761252862307,0.33651931,109910.0,109900.0,0.00554938]
[1761252862513,0.65631931,109910.0,109900.0,0.00554938]
[1761252865309,0.63191744,109910.0,109900.0,0.00554938]
[1761252865612,0.63191744,109910.0,109900.0,0.04906938]
[1761252866614,0.63191744,109910.0,109900.0,0.02664938]
[1761252867509,0.63191744,109910.0,109900.0,0.04937938]
[1761252868408,0.4680878,109910.0,109900.0,0.04937938]
[1761252868608,0.63191744,109910.0,109900.0,0.04937938]
[1761252868804,0.1482878,109910.0,109900.0,0.04937938]
[1761252869009,0.4681278,109910.0,109900.0,0.04937938]
[1761252869914,0.1354378,109910.0,109900.0,0.67758522]
[1761252870805,0.1354378,109910.0,109900.0,0.99742522]
[1761252873114,0.1346441,109920.0,109910.0,0.149408]
[1761252873318,0.1346441,109920.0,109910.0,0.58307964]
[1761252873618,0.1474241,109920.0,109910.0,0.41925]
[1761252873816,0.1474241,109920.0,109910.0,0.510208]
[1761252875120,0.1484241,109920.0,109910.0,0.510208]
[1761252875416,0.1484241,109920.0,109910.0,0.4975978]
[1761252875618,0.31225374,109920.0,109910.0,0.40664]
[1761252875812,0.31225374,109920.0,109910.0,0.4975978]
[1761252877623,0.31225374,109920.0,109910.0,0.40664]
[1761252878423,0.31225374,109920.0,109910.0,0.04584]
[1761252879017,0.31225374,109920.0,109910.0,0.02311]
[1761252880525,0.33665561,109920.0,109910.0,0.02311]
[1761252880723,0.33665561,109920.0,109910.0,0.04584]
[1761252882920,0.33665561,109920.0,109910.0,0.02311]
[1761252883127,0.05647,109910.0,109900.0,0.82199488]
[1761252883720,0.1474278,109910.0,109900.0,0.82199488]
[1761252884027,0.1474278,109910.0,109900.0,0.83460488]
[1761252885822,0.1346478,109910.0,109900.0,0.83460488]
[1761252886224,0.17182967,109910.0,109900.0,0.83460488]
[1761252887028,0.1718603,109910.0,109900.0,0.83460488]
[1761252887330,0.1718603,109910.0,109900.0,0.82199488]
[1761252887930,0.1590803,109910.0,109900.0,0.83460488]
[1761252889229,0.19169464,109910.0,109900.0,0.83460488]
[1761252889925,0.19169464,109910.0,109900.0,0.83460548]
[1761252890228,0.20447464,109910.0,109900.0,0.83460548]
[1761252890430,0.18004214,109910.0,109900.0,0.83460548]
[1761252891232,0.20450103,109910.0,109900.0,0.83460548]
[1761252891930,0.16726214,109910.0,109900.0,0.83460548]
[1761252892122,0.19172104,109910.0,109900.0,0.83460548]
[1761252892828,0.20450104,109910.0,109900.0,0.83460548]
[1761252893228,0.18004214,109910.0,109900.0,0.83460548]
[1761252894729,0.18004214,109910.0,109900.0,0.74363938]
[1761252894930,0.39282155,109910.0,109900.0,0.73102938]
[1761252897032,0.39282155,109910.0,109900.0,0.41118938]
[1761252899035,0.22899191,109910.0,109900.0,0.41118938]
[1761252899826,0.22899191,109910.0,109900.0,0.50215548]
[1761252900032,0.22899191,109910.0,109900.0,0.51506548]
[1761252900531,0.20451854,109910.0,109900.0,0.51506548]
[1761252902233,0.20451293,109910.0,109900.0,0.51506548]
[1761252902532,0.20451293,109910.0,109900.0,0.41118938]
[1761252902533,0.18004214,109910.0,109900.0,0.41118938]
[1761252902734,0.34387178,109910.0,109900.0,0.41118938]
[1761252903837,0.34387178,109910.0,109900.0,0.38845938]
[1761252904029,0.34387178,109910.0,109900.0,0.02765938]
[1761252904230,0.39282155,109910.0,109900.0,0.04943938]
[1761252905435,0.68004721,109910.0,109900.0,0.04943938]
[1761252906034,0.68004721,109910.0,109900.0,0.02678938]
[1761252906329,0.68004721,109910.0,109900.0,0.00454938]
[1761252906524,0.68004721,109910.0,109880.0,0.43019679]
[1761252906525,0.0909744,109890.0,109880.0,0.43019679]
[1761252906722,0.66630922,109890.0,109880.0,0.38304]
[1761252906929,0.71525899,109890.0,109880.0,0.40569]
[1761252907128,0.66630922,109890.0,109880.0,0.40569]
[1761252907733,0.66630922,109890.0,109880.0,0.40869]
[1761252908235,0.69074636,109890.0,109880.0,0.40869]
[1761252909932,0.69074636,109890.0,109880.0,0.04789]
[1761252912341,0.65813147,109890.0,109880.0,0.04789]
[1761252916236,0.49409154,109890.0,109880.0,0.40869]
[1761252916435,0.33829147,109890.0,109880.0,0.57276993]
[1761252916643,0.33829147,109890.0,109880.0,0.66375263]
[1761252917238,0.33829147,109890.0,109880.0,0.4996727]
[1761252917437,0.1359644,109890.0,109880.0,0.84044256]
[1761252917742,0.1359644,109890.0,109880.0,0.5122827]
[1761252917943,0.1497744,109890.0,109880.0,0.66375263]
[1761252918136,0.31385433,109890.0,109880.0,0.66375263]
[1761252918941,0.31385433,109890.0,109880.0,0.4996727]
[1761252919142,0.31385433,109890.0,109880.0,0.40869]
[1761252919539,0.31385433,109890.0,109880.0,0.4996726]
[1761252920144,0.31385433,109890.0,109880.0,0.66375253]
[1761252923944,0.31385433,109890.0,109880.0,0.57276993]
[1761252924549,0.1127344,109890.0,109880.0,0.84044246]
[1761252924749,0.0909744,109890.0,109880.0,0.84044246]
[1761252924937,0.25124684,109900.0,109890.0,0.0909744]
[1761252925141,0.16027124,109910.0,109900.0,0.1476361]
[1761252925344,0.1358341,109910.0,109900.0,0.67251603]
[1761252926955,0.1484641,109910.0,109900.0,0.67251603]
[1761252927356,0.31254403,109910.0,109900.0,0.67251603]
[1761252927857,0.31254403,109910.0,109900.0,0.40456]
[1761252928057,0.33698117,109910.0,109900.0,0.40456]
[1761252929552,0.36959606,109910.0,109900.0,0.40456]
[1761252930053,0.36959606,109910.0,109900.0,0.04376]
[1761252930460,0.39410869,109910.0,109900.0,0.04376]
[1761252931159,0.1481661,109900.0,109890.0,0.8147594]
[1761252931353,0.33668435,109900.0,109890.0,0.8147594]
[1761252931660,0.53337917,109900.0,109890.0,0.40391]
[1761252932052,0.50894085,109900.0,109890.0,0.40391]
[1761252932254,0.34486092,109900.0,109890.0,0.40491]
[1761252932449,0.34486092,109900.0,109890.0,0.4968844]
[1761252932656,0.36930062,109900.0,109890.0,0.5097944]
[1761252932859,0.36930062,109900.0,109890.0,0.67387433]
[1761252933261,0.20522069,109900.0,109890.0,0.67387433]
[1761252933457,0.36930062,109900.0,109890.0,0.66096433]
[1761252934257,0.36930062,109900.0,109890.0,0.4968844]
[1761252934455,0.36930062,109900.0,109890.0,0.66096433]
[1761252935364,0.36930062,109900.0,109890.0,0.4968844]
[1761252935568,0.36930062,109900.0,109890.0,0.66096433]
[1761252936266,0.36930062,109900.0,109890.0,0.30016433]
[1761252936466,0.36930062,109900.0,109890.0,0.66096433]
[1761252937671,0.36930062,109900.0,109890.0,0.40591]
[1761252937961,0.36930062,109900.0,109890.0,0.4968844]
[1761252938669,0.20522069,109900.0,109890.0,0.4968844]
[1761252938966,0.36930062,109900.0,109890.0,0.4968844]
[1761252939664,0.33401062,109900.0,109890.0,0.67387433]
[1761252939870,0.35667062,109900.0,109890.0,0.67387433]
[1761252940070,0.36930062,109900.0,109890.0,0.4968844]
[1761252940370,0.36930062,109900.0,109890.0,0.66096433]
[1761252940568,0.1726058,109900.0,109890.0,0.66096433]
[1761252940770,0.32405573,109900.0,109890.0,0.67387433]
[1761252945473,0.33668573,109900.0,109890.0,0.67387433]
[1761252945773,0.33668573,109900.0,109890.0,0.69838112]
[1761252953075,0.32405573,109900.0,109890.0,0.69838112]
[1761252953782,0.33679573,109900.0,109890.0,0.68547112]
[1761252954582,0.33679573,109900.0,109890.0,0.74933679]
[1761252955082,0.33679573,109900.0,109890.0,0.74833679]
[1761252955582,0.33679573,109900.0,109890.0,0.83931119]
[1761252956178,0.33679573,109900.0,109890.0,1.00339112]
[1761252956972,0.1727158,109900.0,109890.0,1.00339112]
[1761252957175,0.1599758,109900.0,109890.0,1.01604112]
[1761252957882,0.32405573,109900.0,109890.0,1.01604112]
[1761252961487,0.1599758,109900.0,109890.0,1.01604112]
[1761252961688,0.19259069,109900.0,109890.0,1.01604112]
[1761252961987,0.1599758,109900.0,109890.0,1.01604112]
[1761252962894,0.1599758,109900.0,109890.0,1.04873797]
[1761252963186,0.1599758,109900.0,109890.0,1.01604112]
[1761252963387,0.32405573,109900.0,109890.0,1.01604112]
[1761252963681,0.33679573,109900.0,109890.0,0.85196119]
[1761252963882,0.50087566,109900.0,109890.0,0.83931119]
[1761252964077,0.53349055,109900.0,109890.0,0.74833679]
[1761252964282,0.36941062,109900.0,109890.0,0.74833679]
[1761252965083,0.36941062,109900.0,109890.0,1.00339112]
[1761252965280,0.20533069,109900.0,109890.0,0.91241672]
[1761252965486,0.36941062,109900.0,109890.0,0.91241672]
[1761252966687,0.20533069,109900.0,109890.0,0.74833679]
[1761252969593,0.21767202,109900.0,109890.0,0.74833679]
[1761252969994,0.38167695,109900.0,109890.0,0.74833679]
[1761252972493,0.21767202,109900.0,109890.0,0.74833679]
[1761252972797,0.38167695,109900.0,109890.0,0.74833679]
[1761252973198,0.20493202,109900.0,109890.0,0.85196119]
[1761252973394,0.17292713,109900.0,109890.0,0.85196119]
[1761252975695,0.18566713,109900.0,109890.0,0.85196119]
[1761252977888,0.18566713,109900.0,109890.0,0.76098679]
[1761252978997,0.21828202,109900.0,109890.0,0.76098679]
[1761252979597,0.21828202,109900.0,109890.0,0.85196119]
[1761252979898,0.38228695,109900.0,109890.0,0.83931119]
[1761252980197,0.19384232,109900.0,109890.0,0.38753679]
[1761252980392,0.35784725,109900.0,109890.0,0.38753679]
[1761252980597,0.37418213,109900.0,109890.0,0.02211]
[1761252981091,0.77418213,109900.0,109890.0,0.02211]
[1761252981296,0.77418213,109900.0,109880.0,0.74927679]
[1761252981297,0.1495744,109890.0,109880.0,0.74927679]
[1761252981498,0.16133862,109890.0,109880.0,0.85290949]
[1761252982300,0.17407862,109890.0,109880.0,0.85290949]
[1761252982697,0.17407862,109890.0,109880.0,0.84125949]
[1761252982893,0.20675103,109890.0,109880.0,0.84125949]
[1761252983094,0.20675103,109890.0,109880.0,0.8167527]
[1761252983095,0.18224681,109890.0,109880.0,0.8167527]
[1761252983588,0.18224681,109890.0,109880.0,0.8177527]
[1761252984098,0.20673026,109890.0,109880.0,0.8177527]
[1761252984999,0.20673026,109890.0,109880.0,0.4978727]
[1761252985395,0.20673026,109890.0,109880.0,0.40689]
[1761252985896,0.37073519,109890.0,109880.0,0.40689]
[1761252986097,0.37073666,109890.0,109880.0,0.40689]
[1761252986499,0.34625174,109890.0,109880.0,0.40689]
[1761252989505,0.18224681,109890.0,109880.0,0.40689]
[1761252990607,0.20672082,109890.0,109880.0,0.40689]
[1761252993407,0.37072575,109890.0,109880.0,0.40689]
[1761252997106,0.37072575,109890.0,109880.0,0.4978726]
[1761252997808,0.20672082,109890.0,109880.0,0.4978726]
[1761253002511,0.05714642,109890.0,109880.0,0.67474753]
[1761253002715,0.12778244,109900.0,109890.0,0.1465344]
[1761253003017,0.12778244,109900.0,109890.0,1.01572612]
[1761253005117,0.17115244,109900.0,109890.0,0.85172119]
[1761253005310,0.17115244,109900.0,109890.0,0.8272144]
[1761253005616,0.14940244,109900.0,109890.0,0.8272144]
[1761253005815,0.12778244,109900.0,109890.0,0.8272144]
[1761253006016,0.14940244,109900.0,109890.0,0.8272144]
[1761253006719,0.17115244,109900.0,109890.0,0.8272144]
[1761253007819,0.17115244,109900.0,109890.0,0.99121933]
[1761253009321,0.17115244,109900.0,109890.0,1.35201933]
[1761253009820,0.18514244,109900.0,109890.0,1.1753644]
[1761253010324,0.18514244,109900.0,109890.0,1.1880144]
[1761253010519,0.21781485,109900.0,109890.0,1.1880144]
[1761253010824,0.21781485,109900.0,109890.0,1.1753644]
[1761253011623,0.38181978,109900.0,109890.0,1.08439]
[1761253012434,0.38181978,109900.0,109890.0,1.1753644]
[1761253013829,0.20382485,109900.0,109890.0,1.1880144]
[1761253014222,0.20382485,109900.0,109890.0,1.35201933]
[1761253014428,0.17115244,109900.0,109890.0,1.35201933]
[1761253014934,0.17115244,109900.0,109890.0,1.1880144]
[1761253018439,0.12778244,109900.0,109890.0,1.1880144]
[1761253019339,0.15099244,109900.0,109890.0,1.1880144]
[1761253020238,0.15099244,109900.0,109890.0,1.35201933]
[1761253020439,0.17375244,109900.0,109890.0,1.35201933]
[1761253021237,0.20642485,109900.0,109890.0,1.35201933]
[1761253021738,0.20642485,109900.0,109890.0,1.1880144]
[1761253021940,0.18366485,109900.0,109890.0,1.1880144]
[1761253022544,0.18366485,109900.0,109880.0,0.29235782]
[1761253022545,0.01295,109890.0,109880.0,0.04351]
[1761253022729,0.1499027,109880.0,109870.0,0.02227508]
[1761253023041,0.149911,109870.0,109860.0,0.40886104]
[1761253023240,0.33839298,109870.0,109860.0,0.40886104]
[1761253024035,0.33847806,109870.0,109860.0,0.40886104]
[1761253025341,0.37112706,109870.0,109860.0,0.04906104]
[1761253025839,0.39559978,109870.0,109860.0,0.05106104]
[1761253026245,0.34665001,109870.0,109860.0,0.05106104]
[1761253027237,0.37109029,109870.0,109860.0,0.05006104]
[1761253028345,0.70745001,109870.0,109860.0,0.05006104]
[1761253028538,0.70845001,109870.0,109860.0,0.02674104]
[1761253028745,1.27274206,109870.0,109860.0,0.00455104]
[1761253029045,1.32169183,109870.0,109860.0,0.00455104]
[1761253029341,1.27274206,109870.0,109860.0,0.00455104]
[1761253029852,0.87274206,109870.0,109860.0,0.00455104]
[1761253030137,0.73300224,109870.0,109860.0,0.04806104]
[1761253030543,0.70035324,109870.0,109860.0,0.04806104]
[1761253032045,0.84009306,109870.0,109860.0,0.04806104]
[1761253033146,0.67594457,109870.0,109860.0,0.04806104]
[1761253038045,0.31514457,109870.0,109860.0,0.40886104]
[1761253038245,0.31514457,109870.0,109860.0,0.04806104]
[1761253040347,0.67594457,109870.0,109860.0,0.04806104]
[1761253040743,0.99586457,109870.0,109860.0,0.04806104]
[1761253041151,0.30219457,109870.0,109860.0,0.58572953]
[1761253041345,0.30219457,109870.0,109860.0,0.67672873]
[1761253042650,0.00108508,109870.0,109860.0,1.56079722]
[1761253042852,0.30057457,109870.0,109860.0,1.39664873]
[1761253043050,0.13642608,109870.0,109860.0,1.39664873]
[1761253043252,0.02429508,109870.0,109860.0,1.39664873]
[1761253043753,0.09207608,109870.0,109860.0,1.39664873]
[1761253044154,0.09207608,109870.0,109860.0,1.56079722]
[1761253045755,0.11456608,109870.0,109860.0,1.56079722]
[1761253046153,0.00108508,109870.0,109860.0,1.56079722]
[1761253046356,0.00108508,109870.0,109860.0,1.58530401]
[1761253047154,0.00108508,109870.0,109860.0,1.56079722]
[1761253047354,0.00108508,109870.0,109860.0,1.61796912]
[1761253048054,0.00108508,109870.0,109860.0,1.59349407]
[1761253048658,0.00108508,109870.0,109860.0,1.61792378]
[1761253049855,0.00108508,109870.0,109860.0,1.59344097]
[1761253050258,0.00108508,109870.0,109860.0,1.64246104]
[1761253050858,0.00108508,109870.0,109860.0,1.7155139]